bitfinex/quotes_BTCUSD_20250529
["timestamp","ask_amount","ask_price","bid_price","bid_amount"]
[1748521940039,0.18509425,108640.0,108630.0,0.46323731]
[1748521940514,0.18509425,108640.0,108630.0,0.4546846]
[1748521940761,0.18509425,108640.0,108630.0,0.46326461]
[1748521941220,0.18509425,108640.0,108630.0,0.44614882]
[1748521941675,0.18509425,108640.0,108630.0,0.46328812]
[1748521941918,0.18509425,108640.0,108630.0,0.43757917]
[1748521942917,0.001,108640.0,108630.0,0.98930628]
[1748521943161,0.01020403,108640.0,108630.0,1.70613295]
[1748521943400,0.01020411,108640.0,108630.0,2.11658906]
[1748521943648,0.22089225,108650.0,108640.0,0.19329879]
[1748521943901,0.22089225,108650.0,108640.0,0.62193956]
[1748521944132,0.19329879,108640.0,108630.0,0.67563622]
[1748521944396,0.19329879,108640.0,108630.0,0.33383317]
[1748521944645,0.19329879,108640.0,108630.0,0.02725424]
[1748521944646,0.18409425,108640.0,108630.0,0.02725424]
[1748521944884,0.19329879,108640.0,108630.0,0.01864673]
[1748521945106,0.23129879,108640.0,108630.0,0.0358643]
[1748521945323,0.23129879,108640.0,108630.0,0.01764673]
[1748521946010,0.23129879,108640.0,108630.0,0.04347476]
[1748521946222,0.23129879,108640.0,108630.0,0.01764673]
[1748521946670,0.19329879,108640.0,108630.0,0.01764673]
[1748521946898,0.19329879,108640.0,108630.0,0.31563355]
[1748521947991,0.19329879,108640.0,108630.0,0.33285271]
[1748521948246,0.19329879,108640.0,108630.0,0.31563355]
[1748521950844,0.19329879,108640.0,108630.0,0.01764673]
[1748521951472,0.19329879,108640.0,108630.0,0.03486776]
[1748521951689,0.19329879,108640.0,108630.0,0.01764673]
[1748521960974,0.19329879,108640.0,108630.0,0.0348595]
[1748521961283,0.19329879,108640.0,108630.0,0.03485955]
[1748521961471,0.19329879,108640.0,108630.0,0.03485779]
[1748521962389,0.19329879,108640.0,108630.0,0.03485883]
[1748521962629,0.19329879,108640.0,108630.0,0.05525883]
[1748521963149,0.19329879,108640.0,108630.0,0.37274556]
[1748521963383,0.19329879,108640.0,108630.0,0.35553355]
[1748521963607,0.19329879,108640.0,108630.0,0.37274558]
[1748521963844,0.19329879,108640.0,108630.0,0.35553355]
[1748521964068,0.19329879,108640.0,108630.0,0.37274558]
[1748521964282,0.19329879,108640.0,108630.0,0.33603355]
[1748521964926,0.19329879,108640.0,108630.0,0.01764673]
[1748521965567,0.19329879,108640.0,108630.0,0.03485623]
[1748521965796,0.19329879,108640.0,108630.0,0.01764673]
[1748521966896,0.19329879,108640.0,108630.0,0.03485623]
[1748521967559,0.19329879,108640.0,108630.0,0.01764673]
[1748521968414,0.19329879,108640.0,108630.0,0.03484891]
[1748521968624,0.19329879,108640.0,108630.0,0.01764673]
[1748521969510,0.19329879,108640.0,108630.0,0.03744673]
[1748521969734,0.19329879,108640.0,108630.0,0.05464218]
[1748521969941,0.19329879,108640.0,108630.0,0.03744673]
[1748521970893,0.19329879,108640.0,108630.0,0.054631]
[1748521971132,0.19329879,108640.0,108630.0,0.05664673]
[1748521971369,0.19329879,108640.0,108630.0,0.073831]
[1748521971624,0.19329879,108640.0,108630.0,0.37181782]
[1748521971840,0.19329879,108640.0,108630.0,0.38900182]
[1748521972591,0.19329879,108640.0,108630.0,0.38901135]
[1748521973256,0.19329879,108640.0,108630.0,0.37181782]
[1748521973896,0.19329879,108640.0,108630.0,0.09107291]
[1748521974355,0.19329879,108640.0,108630.0,0.073831]
[1748521975047,0.19329879,108640.0,108630.0,0.09107312]
[1748521975723,0.19329879,108640.0,108630.0,0.073831]
[1748521975945,0.19329879,108640.0,108630.0,0.09107312]
[1748521976164,0.19329879,108640.0,108630.0,0.073831]
[1748521977091,0.19329879,108640.0,108630.0,0.09107312]
[1748521977303,0.19329879,108640.0,108630.0,0.073831]
[1748521979158,0.19329879,108640.0,108630.0,0.054631]
[1748521979623,0.19329879,108640.0,108630.0,0.05207374]
[1748521979846,0.19329879,108640.0,108630.0,0.034831]
[1748521980302,0.19329879,108640.0,108630.0,0.05207379]
[1748521980765,0.19329879,108640.0,108630.0,0.034831]
[1748521981192,0.19329879,108640.0,108630.0,0.05207395]
[1748521981415,0.19329879,108640.0,108630.0,0.034831]
[1748521981856,0.19329879,108640.0,108630.0,0.05207396]
[1748521982072,0.19329879,108640.0,108630.0,0.034831]
[1748521982498,0.19329879,108640.0,108630.0,0.054731]
[1748521983379,0.19329879,108640.0,108630.0,0.07197396]
[1748521983603,0.19329879,108640.0,108630.0,0.054731]
[1748521985836,0.19329879,108640.0,108630.0,0.07197396]
[1748521986048,0.19329879,108640.0,108630.0,0.054731]
[1748521987011,0.19329879,108640.0,108630.0,0.07197396]
[1748521987236,0.19329879,108640.0,108630.0,0.054731]
[1748521989556,0.19329879,108640.0,108630.0,0.07197396]
[1748521992732,0.19329879,108640.0,108630.0,0.08922075]
[1748521992968,0.19329879,108640.0,108630.0,0.07197396]
[1748521993658,0.19329879,108640.0,108630.0,0.08922076]
[1748521993902,0.19329879,108640.0,108630.0,0.07197396]
[1748521994144,0.19329879,108640.0,108630.0,0.08922076]
[1748521994370,0.19329879,108640.0,108630.0,0.07197396]
[1748521995475,0.19329879,108640.0,108630.0,0.08922077]
[1748521995700,0.19329879,108640.0,108630.0,0.07197396]
[1748521995913,0.19329879,108640.0,108630.0,0.08922076]
[1748521996126,0.19329879,108640.0,108630.0,0.07197396]
[1748521997736,0.19329879,108640.0,108630.0,0.09237396]
[1748521998199,0.19329879,108640.0,108630.0,0.06932082]
[1748521998423,0.19329879,108640.0,108630.0,0.0693213]
[1748521998652,0.19329879,108640.0,108630.0,0.05207396]
[1748521999128,0.19329879,108640.0,108630.0,0.06932142]
[1748521999856,0.96193956,108640.0,108630.0,0.06932142]
[1748522000083,0.97074663,108640.0,108630.0,0.06932142]
[1748522000293,0.96193956,108640.0,108630.0,0.05207396]
[1748522000515,0.96193956,108640.0,108630.0,0.0693244]
[1748522000958,0.96493956,108640.0,108630.0,0.0693244]
[1748522001181,1.52125845,108640.0,108630.0,0.06932446]
[1748522001402,1.58464452,108640.0,108630.0,0.06932446]
[1748522001634,1.58464452,108640.0,108630.0,0.05207396]
[1748522001857,1.98204452,108640.0,108630.0,0.05207396]
[1748522002072,1.99005336,108640.0,108630.0,0.05207396]
[1748522002319,1.93758443,108640.0,108630.0,0.05207396]
[1748522002536,2.00104274,108640.0,108630.0,0.05207396]
[1748522002758,1.99704274,108640.0,108630.0,0.05207396]
[1748522002983,2.00204274,108640.0,108630.0,0.05207396]
[1748522003211,1.96302359,108640.0,108630.0,0.03050152]
[1748522003485,1.96302359,108640.0,108560.0,0.38144]
[1748522003486,0.18421295,108570.0,108560.0,0.0196]
[1748522003710,0.18421295,108570.0,108560.0,0.03994923]
[1748522004414,0.17823047,108570.0,108560.0,0.33793605]
[1748522004647,0.17823047,108570.0,108560.0,0.03994923]
[1748522005306,0.17823047,108570.0,108560.0,0.01964923]
[1748522005554,0.17823047,108570.0,108560.0,0.03984923]
[1748522006475,0.17823047,108570.0,108560.0,0.02064923]
[1748522006689,0.17823047,108570.0,108560.0,0.00104923]
[1748522007624,0.13923047,108570.0,108560.0,0.02024923]
[1748522009870,0.13923047,108570.0,108560.0,0.33873605]
[1748522010083,0.13923047,108570.0,108560.0,0.52296596]
[1748522010299,0.13923047,108570.0,108560.0,0.33873605]
[1748522010521,0.13923047,108570.0,108560.0,0.52296596]
[1748522011826,0.13923047,108570.0,108560.0,0.33873605]
[1748522014683,0.10723047,108570.0,108560.0,0.33873605]
[1748522015830,0.10723047,108570.0,108560.0,0.34732126]
[1748522016267,0.10723047,108570.0,108560.0,0.33873605]
[1748522016908,0.10723047,108570.0,108560.0,0.34732126]
[1748522017354,0.10723047,108570.0,108560.0,0.33873605]
[1748522017790,0.10723047,108570.0,108560.0,0.52296596]
[1748522018887,0.10723047,108570.0,108560.0,0.53155117]
[1748522019117,0.10723047,108570.0,108560.0,0.52296596]
[1748522020218,0.10723047,108570.0,108560.0,0.53155117]
[1748522020427,0.10723047,108570.0,108560.0,0.52296596]
[1748522020647,0.10723047,108570.0,108560.0,0.34732126]
[1748522020829,0.10723047,108570.0,108560.0,0.52296596]
[1748522021520,0.10723047,108570.0,108560.0,0.53155117]
[1748522021723,0.10723047,108570.0,108560.0,0.52296596]
[1748522021943,0.09023047,108570.0,108560.0,0.52296596]
[1748522022155,0.09023047,108570.0,108560.0,0.53155117]
[1748522022373,0.09023047,108570.0,108560.0,0.52296596]
[1748522022770,0.09023047,108570.0,108560.0,0.04074923]
[1748522022987,0.09023047,108570.0,108560.0,0.02024923]
[1748522023449,0.09023047,108570.0,108560.0,0.02883531]
[1748522023671,0.09023047,108570.0,108560.0,0.02783516]
[1748522023899,0.09123047,108570.0,108560.0,0.01924923]
[1748522024114,0.09123047,108570.0,108560.0,0.02783516]
[1748522024754,0.09123047,108570.0,108560.0,0.01924923]
[1748522024965,0.09223047,108570.0,108560.0,0.01924923]
[1748522025195,0.09223047,108570.0,108560.0,0.02783516]
[1748522025640,0.09223047,108570.0,108560.0,4.923e-05]
[1748522025868,0.18328442,108570.0,108560.0,0.00863792]
[1748522026089,0.18328442,108570.0,108560.0,0.01722669]
[1748522027441,0.18328442,108570.0,108560.0,0.01722684]
[1748522027660,0.18328442,108570.0,108560.0,0.05702684]
[1748522027661,0.09223047,108570.0,108560.0,0.05702684]
[1748522027896,0.38251047,108570.0,108560.0,0.05702684]
[1748522028108,0.38251047,108570.0,108560.0,0.04843792]
[1748522028538,0.38251047,108570.0,108560.0,0.02853792]
[1748522028971,0.34351047,108570.0,108560.0,0.05692678]
[1748522029476,0.34351047,108570.0,108560.0,0.05692656]
[1748522029691,0.34351047,108570.0,108560.0,0.05692651]
[1748522029916,0.05323047,108570.0,108560.0,0.05692651]
[1748522031216,0.05323047,108570.0,108560.0,0.05693234]
[1748522031672,0.05323047,108570.0,108560.0,0.05695468]
[1748522031885,0.05323047,108570.0,108560.0,0.04833792]
[1748522032100,0.05323047,108570.0,108560.0,0.05695468]
[1748522032318,0.05323047,108570.0,108560.0,0.05695583]
[1748522032764,0.05323047,108570.0,108560.0,0.53055465]
[1748522033007,0.05323047,108570.0,108560.0,0.34632474]
[1748522033890,0.05323047,108570.0,108560.0,0.35494216]
[1748522034105,0.05323047,108570.0,108560.0,0.34632474]
[1748522034989,0.002,108570.0,108560.0,0.53055465]
[1748522035275,0.002,108570.0,108560.0,0.95644003]
[1748522035536,0.01121005,108570.0,108560.0,0.65845321]
[1748522035812,0.01120996,108570.0,108560.0,1.05845321]
[1748522036111,0.18420835,108590.0,108580.0,0.039]
[1748522036388,0.18420835,108590.0,108580.0,0.33698682]
[1748522037171,0.18420835,108590.0,108580.0,0.5211828]
[1748522037403,0.18416206,108600.0,108590.0,0.0411]
[1748522037624,0.47444206,108600.0,108590.0,0.0411]
[1748522038509,0.18416206,108600.0,108590.0,0.0411]
[1748522039204,0.18716206,108600.0,108590.0,0.0411]
[1748522039427,0.19016206,108600.0,108590.0,0.0411]
[1748522041432,0.19016206,108600.0,108590.0,0.22527902]
[1748522041642,0.19016206,108600.0,108590.0,0.0411]
[1748522044346,0.15116206,108600.0,108590.0,0.0411]
[1748522051427,0.11216206,108600.0,108590.0,0.0411]
[1748522054281,0.11216206,108600.0,108590.0,0.0204]
[1748522055769,0.11216206,108600.0,108590.0,0.0396]
[1748522057340,0.40228206,108600.0,108590.0,0.0396]
[1748522058391,0.36328206,108600.0,108590.0,0.0396]
[1748522061246,0.07316206,108600.0,108590.0,0.0396]
[1748522061460,0.36324206,108600.0,108590.0,0.0396]
[1748522061905,0.006,108600.0,108590.0,0.22377902]
[1748522062126,0.006,108600.0,108590.0,0.61281979]
[1748522062127,0.02441493,108600.0,108590.0,0.61281979]
[1748522062352,0.03362269,108600.0,108590.0,0.62202857]
[1748522062580,0.03362269,108600.0,108590.0,0.98044553]
[1748522062581,0.006,108600.0,108590.0,0.98044553]
[1748522063016,0.02761861,108620.0,108610.0,0.2033451]
[1748522063238,0.03682433,108620.0,108610.0,0.52023192]
[1748522063458,0.02761793,108620.0,108610.0,0.61128587]
[1748522063709,0.01841052,108630.0,108620.0,0.18412815]
[1748522063914,0.01841018,108630.0,108620.0,0.48211497]
[1748522064128,0.01841018,108630.0,108620.0,0.50052769]
[1748522064373,0.02761557,108630.0,108620.0,0.5235642]
[1748522064580,0.02761557,108630.0,108620.0,0.5327706]
[1748522065056,0.02761557,108630.0,108620.0,0.54197692]
[1748522065525,0.00920496,108630.0,108620.0,0.5327706]
[1748522065743,0.02241018,108630.0,108620.0,0.24399001]
[1748522065976,0.21572677,108630.0,108620.0,0.5235642]
[1748522066203,0.03161557,108630.0,108620.0,0.53277052]
[1748522066429,0.03161557,108630.0,108620.0,0.5327706]
[1748522066642,0.04082113,108630.0,108620.0,0.5327706]
[1748522066860,0.04082113,108630.0,108620.0,0.5235642]
[1748522067073,0.22493233,108630.0,108620.0,0.5235642]
[1748522067546,0.22493233,108630.0,108620.0,0.9235642]
[1748522067767,0.21572737,108630.0,108620.0,0.62557738]
[1748522069784,0.19731676,108630.0,108620.0,0.44144923]
[1748522071055,0.19731676,108630.0,108620.0,0.04144923]
[1748522071504,0.19731676,108630.0,108620.0,0.44144923]
[1748522073879,0.19731676,108630.0,108620.0,0.62557738]
[1748522074132,0.19731676,108630.0,108620.0,0.9235642]
[1748522074352,0.19731676,108630.0,108620.0,0.73943605]
[1748522074567,0.19731676,108630.0,108620.0,0.9235642]
[1748522075249,0.19731676,108630.0,108620.0,0.9327706]
[1748522075480,0.19731676,108630.0,108620.0,1.05144274]
[1748522075481,0.004,108630.0,108620.0,1.05144274]
[1748522075699,0.01320479,108630.0,108620.0,1.05144274]
[1748522075915,0.004,108630.0,108620.0,1.05144274]
[1748522076130,0.01320479,108630.0,108620.0,1.05144274]
[1748522076556,0.002,108630.0,108620.0,1.05144274]
[1748522076779,0.002,108630.0,108620.0,1.06598359]
[1748522077045,0.003,108630.0,108620.0,1.06598359]
[1748522077711,0.003,108630.0,108620.0,1.40598359]
[1748522077712,0.001,108630.0,108620.0,1.40598359]
[1748522078140,0.002,108630.0,108620.0,1.40598359]
[1748522084346,0.002,108630.0,108620.0,1.10799677]
[1748522084566,0.002,108630.0,108620.0,1.40598359]
[1748522086496,0.03502192,108640.0,108630.0,0.20252172]
[1748522086714,0.22091249,108640.0,108630.0,0.72152258]
[1748522086897,0.21170812,108640.0,108630.0,0.71231753]
[1748522087154,0.21170812,108640.0,108630.0,1.13072822]
[1748522087369,0.21170812,108640.0,108630.0,1.12152283]
[1748522087582,0.21170812,108640.0,108630.0,0.82353601]
[1748522087793,0.21170812,108640.0,108630.0,1.12152283]
[1748522088007,0.21370812,108640.0,108630.0,1.13072805]
[1748522088213,0.21370812,108640.0,108630.0,0.82353601]
[1748522088427,0.21370812,108640.0,108630.0,1.12152283]
[1748522088840,0.21570812,108640.0,108630.0,1.12152283]
[1748522089083,0.21570812,108640.0,108630.0,1.13072805]
[1748522090170,0.21570812,108640.0,108630.0,1.12152283]
[1748522090631,0.21570812,108640.0,108630.0,1.13072839]
[1748522090939,0.21570812,108640.0,108630.0,1.13993369]
[1748522091149,0.20650358,108640.0,108630.0,0.12985395]
[1748522091351,0.20650358,108640.0,108630.0,0.0388]
[1748522091942,0.20650358,108640.0,108630.0,0.33678682]
[1748522092714,0.20650358,108640.0,108630.0,0.31718682]
[1748522093366,0.20650358,108640.0,108630.0,0.33728682]
[1748522100426,0.20650358,108640.0,108630.0,0.52139802]
[1748522100637,0.20650358,108640.0,108630.0,0.50129802]
[1748522100847,0.20650358,108640.0,108630.0,0.2033112]
[1748522101075,0.20650358,108640.0,108630.0,0.0192]
[1748522101296,0.19331659,108630.0,108620.0,0.02084923]
[1748522101960,0.20252189,108630.0,108620.0,0.5234642]
[1748522102628,0.20452189,108630.0,108620.0,0.5234642]
[1748522104372,0.19531659,108630.0,108620.0,0.33933605]
[1748522104823,0.19531659,108630.0,108620.0,0.04134923]
[1748522107466,0.19531659,108630.0,108620.0,0.33933605]
[1748522107681,0.19531659,108630.0,108620.0,0.5234642]
[1748522107897,0.19531659,108630.0,108620.0,0.9234642]
[1748522108529,0.19531659,108630.0,108620.0,0.73933605]
[1748522108746,0.19531659,108630.0,108620.0,0.9234642]
[1748522109357,0.19531659,108630.0,108620.0,0.73933605]
[1748522109986,0.19531659,108630.0,108620.0,0.9234642]
[1748522110218,0.19531659,108630.0,108620.0,0.73933605]
[1748522110434,0.19531659,108630.0,108620.0,0.42084923]
[1748522113509,0.19531659,108630.0,108620.0,0.02084923]
[1748522113936,0.19531659,108630.0,108620.0,0.44164923]
[1748522115027,0.19531659,108630.0,108620.0,0.42084923]
[1748522116992,0.19531659,108630.0,108620.0,0.02084923]
[1748522117430,0.19531659,108630.0,108620.0,0.42084923]
[1748522117653,0.19531659,108630.0,108620.0,0.02084923]
[1748522117873,0.21611659,108630.0,108620.0,4.923e-05]
[1748522118294,0.81340341,108630.0,108620.0,4.923e-05]
[1748522118509,0.90445736,108630.0,108620.0,4.923e-05]
[1748522119405,0.60647054,108630.0,108620.0,4.923e-05]
[1748522123733,0.94647054,108630.0,108620.0,4.923e-05]
[1748522126353,1.24445736,108630.0,108620.0,4.923e-05]
[1748522126569,0.53531659,108630.0,108620.0,4.923e-05]
[1748522126788,0.82487659,108630.0,108620.0,4.923e-05]
[1748522127029,0.48387659,108630.0,108620.0,4.923e-05]
[1748522127241,0.48687659,108630.0,108620.0,0.04004923]
[1748522127455,0.48587659,108630.0,108620.0,0.02004923]
[1748522127692,0.48887659,108630.0,108620.0,0.02004923]
[1748522128777,0.19931659,108630.0,108620.0,0.02004923]
[1748522129009,0.19931659,108630.0,108620.0,0.33733605]
[1748522129440,0.19931659,108630.0,108620.0,0.5214642]
[1748522130098,0.1901112,108630.0,108620.0,0.5214642]
[1748522130554,0.1871112,108630.0,108620.0,0.33733605]
[1748522130763,0.1841112,108630.0,108620.0,0.5214642]
[1748522130983,0.1841112,108630.0,108620.0,0.33733605]
[1748522131421,0.00920556,108630.0,108620.0,0.54908281]
[1748522131664,0.20252189,108630.0,108620.0,0.53987692]
[1748522131881,0.21172694,108630.0,108620.0,0.53987692]
[1748522132330,0.21172694,108630.0,108620.0,0.5306706]
[1748522132554,0.21172694,108630.0,108620.0,0.53987692]
[1748522132764,0.2209325,108630.0,108620.0,0.64934325]
[1748522133418,0.2209325,108630.0,108620.0,0.65854931]
[1748522133845,0.2209325,108630.0,108620.0,0.64934325]
[1748522134067,0.0368213,108630.0,108620.0,0.65854931]
[1748522134306,0.2209325,108630.0,108620.0,0.65854931]
[1748522134513,0.02761574,108630.0,108620.0,0.65854931]
[1748522134720,0.01841035,108630.0,108620.0,0.65854931]
[1748522135148,0.01840984,108630.0,108620.0,0.6309307]
[1748522135355,0.01840984,108630.0,108620.0,0.64934274]
[1748522135356,0.02761497,108630.0,108620.0,0.64934274]
[1748522135581,0.03682027,108630.0,108620.0,0.64934283]
[1748522135785,0.03682027,108630.0,108620.0,0.64934291]
[1748522136207,0.02761497,108630.0,108620.0,0.64934291]
[1748522136413,0.03682027,108630.0,108620.0,0.65854889]
[1748522136628,0.03682027,108630.0,108620.0,0.64934291]
[1748522136859,0.02761497,108630.0,108620.0,0.64013685]
[1748522137066,0.02761497,108630.0,108620.0,0.64934274]
[1748522137279,0.03682036,108630.0,108620.0,0.64013685]
[1748522137491,0.03682036,108630.0,108620.0,0.64934291]
[1748522137910,0.03682036,108630.0,108620.0,0.64013685]
[1748522138388,0.04602583,108630.0,108620.0,0.64013685]
[1748522139060,0.02761497,108630.0,108620.0,0.64934274]
[1748522139277,0.00920403,108640.0,108630.0,0.25182745]
[1748522139495,0.0276126,108640.0,108630.0,0.65007327]
[1748522139720,0.01840823,108640.0,108630.0,0.65007327]
[1748522140159,0.00920403,108640.0,108630.0,0.65927823]
[1748522140369,0.01840823,108640.0,108630.0,0.75019823]
[1748522140587,0.20261098,108650.0,108640.0,0.20359425]
[1748522140810,0.20261098,108650.0,108640.0,0.52228107]
[1748522141021,0.20261098,108650.0,108640.0,0.53148578]
[1748522141233,0.20261098,108650.0,108640.0,0.53148569]
[1748522141476,0.20261098,108650.0,108640.0,0.53148578]
[1748522141689,0.20261098,108650.0,108640.0,0.22429425]
[1748522141902,0.20861098,108650.0,108640.0,0.22429425]
[1748522142557,0.18461098,108650.0,108640.0,0.22429425]
[1748522144307,0.18461098,108650.0,108640.0,0.0402]
[1748522153939,0.18442886,108650.0,108640.0,0.0402]
[1748522159948,0.18431878,108650.0,108640.0,0.0402]
[1748522161085,0.19329879,108640.0,108630.0,0.0398]
[1748522161565,0.19329879,108640.0,108630.0,0.0198]
[1748522162325,0.19331659,108630.0,108620.0,0.04124923]
[1748522162576,0.19331659,108630.0,108620.0,0.13230318]
[1748522167174,0.39331659,108630.0,108620.0,0.43029]
[1748522168333,0.39331659,108630.0,108620.0,0.13230318]
[1748522177396,0.39331659,108630.0,108620.0,0.04124923]
[1748522177988,0.39331659,108630.0,108620.0,0.02124923]
[1748522178218,0.39331659,108630.0,108620.0,0.04094923]
[1748522179956,0.39331659,108630.0,108620.0,0.33893605]
[1748522180400,0.39331659,108630.0,108620.0,0.42999]
[1748522180734,0.40252189,108630.0,108620.0,0.62332447]
[1748522180940,0.40252189,108630.0,108620.0,0.61411815]
[1748522181146,0.39331659,108630.0,108620.0,0.42999]
[1748522181573,0.39331659,108630.0,108620.0,0.61411815]
[1748522181782,0.39331659,108630.0,108620.0,0.62332455]
[1748522182127,0.39331659,108630.0,108620.0,0.61411815]
[1748522182551,0.39331659,108630.0,108620.0,0.42999]
[1748522182773,0.39331659,108630.0,108620.0,0.13200318]
[1748522182982,0.39331659,108630.0,108620.0,0.42999]
[1748522183401,0.39331659,108630.0,108620.0,0.61411815]
[1748522183842,0.39331659,108630.0,108620.0,0.42999]
[1748522184276,0.39331659,108630.0,108620.0,0.13200318]
[1748522186396,0.39331659,108630.0,108620.0,0.31613133]
[1748522186848,0.39331659,108630.0,108620.0,0.32533773]
[1748522187070,0.39331659,108630.0,108620.0,0.31613133]
[1748522188856,0.39331659,108630.0,108620.0,0.61411815]
[1748522191396,0.39331659,108630.0,108620.0,0.42999]
[1748522191818,0.39331659,108630.0,108620.0,0.13200318]
[1748522195174,0.39331659,108630.0,108620.0,0.31613133]
[1748522196202,0.39331659,108630.0,108620.0,0.65143678]
[1748522196912,0.3841112,108630.0,108620.0,0.65143678]
[1748522198174,0.3934112,108630.0,108620.0,4.923e-05]
[1748522198396,1.79343605,108630.0,108620.0,4.923e-05]
[1748522199034,1.4581306,108630.0,108620.0,4.923e-05]
[1748522199481,1.4601306,108630.0,108620.0,4.923e-05]
[1748522199695,1.46000751,108630.0,108620.0,4.923e-05]
[1748522200119,1.42493149,108630.0,108620.0,4.923e-05]
[1748522200335,1.42293149,108630.0,108620.0,4.923e-05]
[1748522201446,1.41153149,108630.0,108620.0,4.923e-05]
[1748522201745,1.41753149,108630.0,108620.0,4.923e-05]
[1748522209423,1.40823149,108630.0,108620.0,4.923e-05]
[1748522209817,1.11000206,108630.0,108620.0,4.923e-05]
[1748522210864,1.11000206,108630.0,108620.0,0.01524923]
[1748522211260,1.11000206,108630.0,108620.0,4.923e-05]
[1748522212450,1.41753149,108630.0,108620.0,4.923e-05]
[1748522215295,1.40823149,108630.0,108620.0,4.923e-05]
[1748522216041,1.11000206,108630.0,108620.0,4.923e-05]
[1748522216271,1.40823149,108630.0,108620.0,0.01514923]
[1748522216985,1.11000206,108630.0,108620.0,0.01514923]
[1748522217425,1.10420442,108630.0,108620.0,0.01514923]
[1748522218769,0.72419047,108630.0,108620.0,0.03104923]
[1748522225498,0.38419047,108630.0,108620.0,0.03104923]
[1748522229504,0.38419047,108630.0,108620.0,0.32927866]
[1748522229721,0.38419047,108630.0,108620.0,0.42033261]
[1748522230826,0.37819047,108630.0,108620.0,0.12210318]
[1748522231040,0.3780914,108630.0,108620.0,0.12210318]
[1748522231253,0.3800914,108630.0,108620.0,0.12210318]
[1748522231683,0.3820914,108630.0,108620.0,0.12210318]
[1748522237123,0.38192229,108630.0,108620.0,0.12210318]
[1748522239547,0.38192229,108630.0,108620.0,0.03104923]
[1748522241090,0.68015172,108630.0,108620.0,0.01514923]
[1748522241304,0.68945172,108630.0,108620.0,4.923e-05]
[1748522243265,0.68015172,108630.0,108620.0,4.923e-05]
[1748522243686,0.68015172,108630.0,108620.0,0.01584923]
[1748522244154,0.38192229,108630.0,108620.0,0.01584923]
[1748522247000,0.67040229,108630.0,108620.0,0.03084923]
[1748522248322,0.67040229,108630.0,108620.0,0.01584923]
[1748522250230,0.67040229,108630.0,108620.0,0.03204923]
[1748522252315,0.67040229,108630.0,108620.0,0.01584923]
[1748522254899,0.67040229,108630.0,108620.0,0.03094923]
[1748522262322,0.38192229,108630.0,108620.0,0.03094923]
[1748522262537,0.67024229,108630.0,108620.0,0.03094923]
[1748522267086,1.01024229,108630.0,108620.0,0.03094923]
[1748522274126,0.67024229,108630.0,108620.0,0.03094923]
[1748522274784,0.76129624,108630.0,108620.0,0.03094923]
[1748522275012,1.05952567,108630.0,108620.0,0.01584923]
[1748522275481,0.76129624,108630.0,108620.0,0.01584923]
[1748522275715,1.39952567,108630.0,108620.0,4.923e-05]
[1748522275936,1.41764844,108630.0,108620.0,4.923e-05]
[1748522276622,1.45834844,108630.0,108620.0,4.923e-05]
[1748522277069,1.45834281,108630.0,108620.0,4.923e-05]
[1748522277718,1.46764281,108630.0,108620.0,4.923e-05]
[1748522279281,1.46564281,108630.0,108620.0,4.923e-05]
[1748522279490,1.46964281,108630.0,108620.0,4.923e-05]
[1748522279709,1.49203456,108630.0,108620.0,4.923e-05]
[1748522280603,1.5139793,108630.0,108620.0,4.923e-05]
[1748522281240,1.49603456,108630.0,108620.0,4.923e-05]
[1748522281688,1.51894485,108630.0,108620.0,4.923e-05]
[1748522281915,1.58477249,108630.0,108620.0,4.923e-05]
[1748522282139,0.1933878,108590.0,108580.0,0.0400563]
[1748522282378,0.66264175,108590.0,108580.0,0.0400563]
[1748522282602,0.66264175,108590.0,108580.0,0.04010554]
[1748522282603,1.30087118,108590.0,108580.0,0.04010554]
[1748522282821,1.30087118,108590.0,108580.0,0.02490554]
[1748522283501,1.30087118,108590.0,108580.0,0.00950554]
[1748522283749,1.30187118,108590.0,108580.0,0.00950554]
[1748522283961,1.31017118,108590.0,108580.0,0.00950554]
[1748522284174,1.31417118,108590.0,108580.0,0.00950554]
[1748522284407,1.31817118,108590.0,108580.0,0.00950554]
[1748522284849,1.31817118,108590.0,108580.0,0.0181131]
[1748522285065,1.30887118,108590.0,108580.0,0.0181131]
[1748522285281,1.30887118,108590.0,108580.0,0.00950554]
[1748522285521,1.30887118,108590.0,108580.0,0.0181131]
[1748522285785,1.30887118,108590.0,108580.0,0.00950554]
[1748522286004,1.30887118,108590.0,108580.0,0.01811236]
[1748522287120,1.30887118,108590.0,108580.0,0.00950554]
[1748522287575,1.30887118,108590.0,108580.0,0.02490554]
[1748522289318,1.30887118,108590.0,108580.0,0.04020554]
[1748522289319,0.2013878,108590.0,108580.0,0.04020554]
[1748522289764,0.17159658,108590.0,108580.0,0.04020554]
[1748522290413,0.16759658,108590.0,108580.0,0.04020554]
[1748522290636,0.16459658,108590.0,108580.0,0.04020554]
[1748522290848,0.16559658,108590.0,108580.0,0.04020554]
[1748522296118,0.16559658,108590.0,108580.0,0.52263095]
[1748522296119,0.02041747,108590.0,108580.0,0.52263095]
[1748522296349,0.02041747,108590.0,108580.0,0.6136849]
[1748522296603,0.002,108590.0,108580.0,0.63210415]
[1748522296820,0.01841679,108590.0,108580.0,0.6419136]
[1748522297043,0.03683366,108590.0,108580.0,0.6419136]
[1748522297264,0.20259649,108590.0,108580.0,0.31605547]
[1748522297714,0.1933878,108590.0,108580.0,0.31605547]
[1748522298592,0.18417902,108590.0,108580.0,0.13385949]
[1748522298815,0.18417902,108590.0,108580.0,0.32005547]
[1748522299032,0.18417902,108590.0,108580.0,0.31805547]
[1748522299255,0.18417902,108590.0,108580.0,0.32005547]
[1748522299486,0.18417902,108590.0,108580.0,0.43408892]
[1748522299700,0.18417902,108590.0,108580.0,0.43208892]
[1748522300118,0.18417902,108590.0,108580.0,0.43408892]
[1748522301902,0.21180518,108590.0,108580.0,0.63670423]
[1748522302125,0.21180518,108590.0,108580.0,0.64591368]
[1748522302339,0.20259666,108590.0,108580.0,0.62749469]
[1748522302562,0.20259666,108590.0,108580.0,0.6367044]
[1748522302787,0.19338788,108590.0,108580.0,0.64591385]
[1748522302998,0.19338788,108590.0,108580.0,0.64591402]
[1748522303435,0.00920861,108590.0,108580.0,0.65512347]
[1748522303662,0.01841696,108590.0,108580.0,0.66433267]
[1748522303875,0.15637024,108600.0,108590.0,0.0322]
[1748522304086,0.15637024,108600.0,108590.0,0.33042943]
[1748522305410,0.15637024,108600.0,108590.0,0.33142943]
[1748522309516,0.1841605,108610.0,108600.0,0.0303]
[1748522310203,0.1841605,108610.0,108600.0,0.21446206]
[1748522310411,0.1841605,108610.0,108600.0,0.32852943]
[1748522310621,0.1841605,108610.0,108600.0,0.51269149]
[1748522310827,0.1841605,108610.0,108600.0,0.32852943]
[1748522311063,0.1451605,108610.0,108600.0,0.51269149]
[1748522311278,0.1451605,108610.0,108600.0,0.32852943]
[1748522311489,0.1461605,108610.0,108600.0,0.32852943]
[1748522311722,0.1471605,108610.0,108600.0,0.32852943]
[1748522312197,0.1471605,108610.0,108600.0,0.0303]
[1748522318118,0.1081605,108610.0,108600.0,0.0303]
[1748522323486,0.1081605,108610.0,108600.0,0.0151]
[1748522323714,0.19336999,108600.0,108590.0,0.0313]